Workbook

Sheet Summary
A3: Paragon Mortgages (No.22) PLC
A5: Information as at the Principal Determination Date | B5: 2015-05-29 | C5: 2015-08-28 | D5: 2015-11-30 | E5: 2016-02-29 | F5: 2016-05-31 | G5: 2016-08-31 | H5: 2016-11-30 | I5: 2017-02-28 | J5: 2017-05-31 | K5: 2017-08-31 | L5: 2017-11-30 | M5: 2018-02-28 | N5: 2018-05-31 | O5: 2018-08-31 | P5: 2018-11-30 | Q5: 2019-02-28 | R5: 2019-05-31
A6: Mortgage Asset Balance | B6: 296725.0032 | C6: 293029.6928 | D6: 288960.6755 | E6: 285441 | F6: 282055.0817 | G6: 277281.565 | H6: 267459.0069 | I6: 235169.9447 | J6: 166608.176 | K6: 127051.9989 | L6: 106846.916 | M6: 91942.97543 | N6: 80224.78023 | O6: 74480.39816 | P6: 65972.4275 | Q6: 57440.75916 | R6: 0
A7: Discretionary Further Advance Prefunding Reserve | B7: 2610 | C7: 2574 | D7: 1478 | E7: 1478 | F7: 1344 | G7: 1166 | H7: 1166 | I7: 0 | J7: 0 | K7: 0 | L7: 0 | M7: 0 | N7: 0 | O7: 0 | P7: 0 | Q7: 0 | R7: 0
A8: Total Assets | B8: =+B6+B7 -> 299335.0032 | C8: 295603.6928 | D8: 290438.6755 | E8: 286919 | F8: 283399.0817 | G8: 278447.565 | H8: =+H6+H7 -> 268625.0069 | I8: 235169.9447 | J8: =+J6+J7 -> 166608.176 | K8: 127051.9989 | L8: =+L6+L7 -> 106846.916 | M8: 91942.97543 | N8: =+N6+N7 -> 80224.78023 | O8: 74480.39816 | P8: =+P6+P7 -> 65972.4275 | Q8: 57440.75916 | R8: =+R6+R7 -> 0
A9: Total Notes | B9: =SUM(B10:B14) -> 299335 | C9: =SUM(C10:C14) -> 295604 | D9: =SUM(D10:D14) -> 290439 | E9: =SUM(E10:E14)+1 -> 286919 | F9: =SUM(F10:F14) -> 283399 | G9: =SUM(G10:G14)+1 -> 278448 | H9: =SUM(H10:H14) -> 268625 | I9: 235170 | J9: 166608 | K9: 127052 | L9: 106847 | M9: 91943 | N9: =SUM(N10:N14) -> 80225 | O9: =SUM(O10:O14)-1 -> 74480 | P9: =SUM(P10:P14) -> 65972 | Q9: =SUM(Q10:Q14) -> 57441 | R9: =SUM(R10:R14) -> 0
A10: Class A1 Notes | B10: 116516 | C10: 114893 | D10: 112646 | E10: 111114 | F10: 109583 | G10: 107429 | H10: 103156 | I10: 88602 | J10: 58776 | K10: 41568 | L10: 32778 | M10: 26294 | N10: 21197 | O10: 18698 | P10: 14996 | Q10: 11285 | R10: 0
A11: Class A2 Notes | B11: 151319 | C11: 149211 | D11: 146293 | E11: 144304 | F11: 142316 | G11: 139518 | H11: 133969 | I11: 115068 | J11: 76332 | K11: 53984 | L11: 42569 | M11: 34149 | N11: 27528 | O11: 24283 | P11: 19476 | Q11: 14656 | R11: 0
A12: Class B Notes | B12: 12000 | C12: 12000 | D12: 12000 | E12: 12000 | F12: 12000 | G12: 12000 | H12: 12000 | I12: 12000 | J12: 12000 | K12: 12000 | L12: 12000 | M12: 12000 | N12: 12000 | O12: 12000 | P12: 12000 | Q12: 12000 | R12: 0
A13: Class C Notes | B13: 12000 | C13: 12000 | D13: 12000 | E13: 12000 | F13: 12000 | G13: 12000 | H13: 12000 | I13: 12000 | J13: 12000 | K13: 12000 | L13: 12000 | M13: 12000 | N13: 12000 | O13: 12000 | P13: 12000 | Q13: 12000 | R13: 0
A14: Class E Notes | B14: 7500 | C14: 7500 | D14: 7500 | E14: 7500 | F14: 7500 | G14: 7500 | H14: 7500 | I14: 7500 | J14: 7500 | K14: 7500 | L14: 7500 | M14: 7500 | N14: 7500 | O14: 7500 | P14: 7500 | Q14: 7500 | R14: 0
A15: Class B, C and E Notes as a % of the Total Notes | B15: =SUM(B12:B14)/B9 -> 0.1052332671 | C15: 0.1065614809 | D15: 0.1084565089 | E15: 0.1097870828 | F15: 0.1111507098 | G15: 0.1131270471 | H15: =SUM(H12:H14)/H9 -> 0.1172638436 | I15: 0.1339456563 | J15: =SUM(J12:J14)/J9 -> 0.1890665514 | K15: 0.2479299814 | L15: =SUM(L12:L14)/L9 -> 0.2948140799 | M15: 0.3426035696 | N15: =SUM(N12:N14)/N9 -> 0.392645684 | O15: 0.4229323308 | P15: =SUM(P12:P14)/P9 -> 0.4774752925 | Q15: 0.5483887815 | R15: 0
A16: Lifetime Redemption Rate | B16: 0.0124 | C16: 0.0335 | D16: 0.0419 | E16: 0.0436 | F16: 0.0447 | G16: 0.0489 | H16: 0.0618 | I16: 0.1139 | J16: 0.2307 | K16: 0.292 | L16: 0.3142 | M16: 0.3271 | N16: 0.3348 | O16: 0.3296 | P16: 0.3334 | Q16: 0.3396 | R16: 1
A17: Quarterly Redemption Rate | B17: 0.0028 | C17: 0.0133 | D17: 0.0147 | E17: 0.0124 | F17: 0.0125 | G17: 0.0177 | H17: 0.0355 | I17: 0.1207 | J17: 0.2916 | K17: 0.2374 | L17: 0.159 | M17: 0.1398 | N17: 0.1274 | O17: 0.0719 | P17: 0.1142 | Q17: 0.1293 | R17: 1
A18: Further Advances released in the quarter | B18: 0 | C18: 36 | D18: 151 | E18: 0 | F18: 134 | G18: 178 | H18: 0 | I18: 0 | J18: 13 | K18: 0 | L18: 0 | M18: 32 | N18: 0 | O18: 25 | P18: 0 | Q18: 0 | R18: 0
A19: First Loss Fund Balance | B19: 7502 | C19: 7502 | D19: 7502 | E19: 7502 | F19: 7502 | G19: 7502 | H19: 7502 | I19: 7502 | J19: 7502 | K19: 7502 | L19: 7502 | M19: 7502 | N19: 7502 | O19: 7502 | P19: 7502 | Q19: 7502 | R19: 0
A20: Liquidity Amount of the First Loss Fund (2.50% of the Class A, B and C Notes) | B20: =SUM(B10:B13)*2.5% -> 7295.875 | C20: 7202.6 | D20: 7073.475 | E20: 6985.45 | F20: 6897.475 | G20: 6773.675 | H20: =SUM(H10:H13)*2.5% -> 6528.125 | I20: 5691.75 | J20: =SUM(J10:J13)*2.5% -> 3977.7 | K20: 2988.8 | L20: =SUM(L10:L13)*2.5% -> 2483.675 | M20: 2111.075 | N20: =SUM(N10:N13)*2.5% -> 1818.125 | O20: 1674.525 | P20: =SUM(P10:P13)*2.5% -> 1461.8 | Q20: 1248.525 | R20: =SUM(R10:R13)*2.5% -> 0
A21: Liquidity Excess Amount (First Loss Fund - Liquidity Amount) | B21: =B19-B20 -> 206.125 | C21: 299.4 | D21: 428.525 | E21: 516.55 | F21: 604.525 | G21: 728.325 | H21: =H19-H20 -> 973.875 | I21: 1810.25 | J21: =J19-J20 -> 3524.3 | K21: 4513.2 | L21: =L19-L20 -> 5018.325 | M21: 5390.925 | N21: =N19-N20 -> 5683.875 | O21: 5827.475 | P21: =P19-P20 -> 6040.2 | Q21: 6253.475 | R21: =R19-R20 -> 0
A22: First Loss Fund as a % of the Assets | B22: =+B19/B8 -> 0.02506222099 | C22: 0.02537857335 | D22: 0.0258298933 | E22: 0.02614675222 | F22: 0.02647150427 | G22: 0.02694223597 | H22: =+H19/H8 -> 0.02792740738 | I22: 0.03190033492 | J22: =+J19/J8 -> 0.04502780224 | K22: 0.05904669007 | L22: =+L19/L8 -> 0.07021260211 | M22: 0.08159405289 | N22: =+N19/N8 -> 0.09351225368 | O22: 0.1007244884 | P22: =+P19/P8 -> 0.1137141725 | Q22: 0.1306041234 | R22: 0
A23: Opening PDL Balance | B23: 0 | C23: 0 | D23: 0 | E23: 0 | F23: 0 | G23: 0 | H23: 0 | I23: 0 | J23: 0 | K23: 0 | L23: 0 | M23: 0 | N23: 0 | O23: 0 | P23: 0 | Q23: 0 | R23: 0
A24: Quarterly Losses | B24: =+B92+B122 -> 0 | C24: 0 | D24: 0 | E24: 0 | F24: 0 | G24: 0 | H24: =+H92+H122 -> 0 | I24: 0 | J24: =+J92+J122 -> 0 | K24: 0 | L24: =+L92+L122 -> 0 | M24: 0 | N24: =+N92+N122 -> 0 | O24: 0 | P24: =+P92+P122 -> 0 | Q24: 0 | R24: =+R92+R122 -> 0
A25: Quarterly Loss Rate (annualised) | B25: =1-(1-B24/B6)^4 -> 0 | C25: 0 | D25: 0 | E25: 0 | F25: 0 | G25: 0 | H25: =1-(1-H24/H6)^4 -> 0 | I25: 0 | J25: =1-(1-J24/J6)^4 -> 0 | K25: 0 | L25: =1-(1-L24/L6)^4 -> 0 | M25: 0 | N25: =1-(1-N24/N6)^4 -> 0 | O25: 0 | P25: =1-(1-P24/P6)^4 -> 0 | Q25: 0 | R25: 0
A26: PDL Replenishment made during the quarter (-ve = recoveries) | B26: 0 | C26: 0 | D26: 0 | E26: 0 | F26: 0 | G26: 0 | H26: 0 | I26: 0 | J26: 0 | K26: 0 | L26: 0 | M26: 0 | N26: 0 | O26: 0 | P26: 0 | Q26: 0 | R26: 0
A27: Outstanding PDL at end of the quarter | B27: =B23+B24-B26 -> 0 | C27: 0 | D27: 0 | E27: 0 | F27: 0 | G27: 0 | H27: =H23+H24-H26 -> 0 | I27: 0 | J27: =J23+J24-J26 -> 0 | K27: 0 | L27: =L23+L24-L26 -> 0 | M27: 0 | N27: =N23+N24-N26 -> 0 | O27: 0 | P27: =P23+P24-P26 -> 0 | Q27: 0 | R27: =R23+R24-R26 -> 0
A28: Spread Trap repayment in the quarter | B28: N/A | C28: N/A | D28: N/A | E28: N/A | F28: N/A | G28: N/A | H28: N/A | I28: N/A | J28: N/A | K28: N/A | L28: N/A | M28: N/A | N28: N/A | O28: N/A | P28: N/A | Q28: N/A | R28: N/A
A29: Spread % (WA Funding Rate less WA Interest Rate) | B29: 0.0251 | C29: 0.0249 | D29: 0.0247 | E29: 0.0248 | F29: 0.0247 | G29: 0.0251 | H29: 0.0275 | I29: 0.0304 | J29: 0.0347 | K29: 0.0339 | L29: 0.0327 | M29: 0.0317 | N29: 0.0317 | O29: 0.0302 | P29: 0.0294 | Q29: 0.0285 | R29: 0
A30: Total Income as a % of the Assets | B30: 0.0089 | C30: 0.0122 | D30: 0.0122 | E30: 0.0123 | F30: 0.0123 | G30: 0.0124 | H30: 0.0121 | I30: 0.0113 | J30: 0.0116 | K30: 0.0116 | L30: 0.0125 | M30: 0.0129 | N30: 0.0135 | O30: 0.0139 | P30: 0.0146 | Q30: 0.0163 | R30: 0
A31: Quarterly surplus income to the Issuer (inc Issuer Services Provider Fee) | B31: 1217 | C31: 1924 | D31: 1930 | E31: 1909 | F31: 1869 | G31: 1866 | H31: 1820 | I31: 1673 | J31: 1598 | K31: 1151 | L31: 963 | M31: 805 | N31: 709 | O31: 624 | P31: 617 | Q31: 655 | R31: =950+7502 -> 8452
A32: Surplus Income as a % of the Assets | B32: =+B31/300009 -> 0.00405654497 | C32: =+C31/B8 -> 0.006427581069 | D32: 0.006529011805 | E32: 0.006572816091 | F32: 0.006514033577 | G32: 0.006584354433 | H32: 0.006536239598 | I32: 0.006228012869 | J32: 0.006795086005 | K32: 0.00690842447 | L32: 0.007579573785 | M32: 0.007534143521 | N32: 0.007711301453 | O32: 0.007778145334 | P32: 0.008284058829 | Q32: 0.00992839016 | R32: 0
A33: Losses as a % of the Assets | B33: =+B24/300009 -> 0 | C33: =+C24/B8 -> 0 | D33: 0 | E33: 0 | F33: 0 | G33: 0 | H33: 0 | I33: 0 | J33: 0 | K33: 0 | L33: 0 | M33: 0 | N33: 0 | O33: 0 | P33: 0 | Q33: 0 | R33: 0
A34: Number of Properties in Possession | B34: =+B90+B120 -> 0 | C34: 0 | D34: 0 | E34: 0 | F34: 0 | G34: 0 | H34: 0 | I34: =+I90+I120 -> 0 | J34: 0 | K34: =+K90+K120 -> 0 | L34: 0 | M34: =+M90+M120 -> 0 | N34: 0 | O34: =+O90+O120 -> 0 | P34: 0 | Q34: =+Q90+Q120 -> 0 | R34: 0
A35: Appointment of a Receiver of Rent | B35: 0 | C35: 0 | D35: 0 | E35: 0 | F35: 0 | G35: 0 | H35: 0 | I35: =+I91+I121 -> 0 | J35: 0 | K35: =+K91+K121 -> 0 | L35: 0 | M35: =+M91+M121 -> 1 | N35: 0 | O35: =+O91+O121 -> 0 | P35: 0 | Q35: =+Q91+Q121 -> 0 | R35: 0
A36: Average Number of months (Possessions) in Arrears at the Sale Date | B36: 0 | C36: 0 | D36: 0 | E36: 0 | F36: 0 | G36: 0 | H36: 0 | I36: 0 | J36: 0 | K36: 0 | L36: 0 | M36: 0 | N36: 0 | O36: 0 | P36: 0 | Q36: 0 | R36: 0
A37: Average Number of months (RoR) in Arrears at the Sale Date | B37: 0 | C37: 0 | D37: 0 | E37: 0 | F37: 0 | G37: 0 | H37: 0 | I37: 0 | J37: 0 | K37: 0 | L37: 0 | M37: 0 | N37: 0 | O37: 0 | P37: 0 | Q37: 0 | R37: 0
A38: Arrears excluding Receiver of Rent and Possession Cases
A39: Performing Loans | B39: 1 | C39: 0.9992268019 | D39: 1 | E39: 1 | F39: 1 | G39: 1 | H39: 1 | I39: 1 | J39: 1 | K39: 1 | L39: 1 | M39: 1 | N39: 0.995206344 | O39: 0.9932244589 | P39: 0.9941707466 | Q39: 0.9702172286 | R39: 0
A40: >1 to 2 months arrears | B40: 0 | C40: 0.0007731980941 | D40: 0 | E40: 0 | F40: 0 | G40: 0 | H40: 0 | I40: 0 | J40: 0 | K40: 0 | L40: 0 | M40: 0 | N40: 0 | O40: 0.001612169147 | P40: 0 | Q40: 0 | R40: 0
A41: >2 to 3 months arrears | B41: 0 | C41: 0 | D41: 0 | E41: 0 | F41: 0 | G41: 0 | H41: 0 | I41: 0 | J41: 0 | K41: 0 | L41: 0 | M41: 0 | N41: 0 | O41: 0 | P41: 0 | Q41: 0.02308769973 | R41: 0
A42: >3 months arrears | B42: 0 | C42: 0 | D42: 0 | E42: 0 | F42: 0 | G42: 0 | H42: 0 | I42: 0 | J42: 0 | K42: 0 | L42: 0 | M42: 0 | N42: 0.004793656011 | O42: 0.005163371968 | P42: 0.005829253441 | Q42: 0.006695071681 | R42: 0
A43: Total | B43: =SUM(B39:B42) -> 1 | C43: 1 | D43: 1 | E43: 1 | F43: 1 | G43: 1 | H43: 1 | I43: 1 | J43: 1 | K43: 1 | L43: 1 | M43: 1 | N43: 1 | O43: 1 | P43: 1 | Q43: 1 | R43: =SUM(R39:R42) -> 0
A44: Total Value of Arrears (£000's) | B44: 0 | C44: 1.75592 | D44: 0.90728 | E44: 1.11317 | F44: 0.5074298692 | G44: 1.37177 | H44: 0.59765 | I44: 0 | J44: 0.03987010236 | K44: 0.5854300482 | L44: 2.215169574 | M44: 8.01795813 | N44: 12.54057031 | O44: 15.0420903 | P44: 20.80885084 | Q44: 45.69011713 | R44: 0
A45: Total Value of Arrears as a % of the Notes Issued (£300,009,117) | B45: =+B44/300009 -> 0 | C45: 5.85289108e-06 | D45: 3.024175941e-06 | E45: 3.710455353e-06 | F45: 1.691382156e-06 | G45: 4.572429494e-06 | H45: =+H44/300009 -> 1.992106903e-06 | I45: 0 | J45: =+J44/300009 -> 1.328963543e-07 | K45: 1.951374953e-06 | L45: =+L44/300009 -> 7.383677071e-06 | M45: 2.672572533e-05 | N45: =+N44/300009 -> 4.1800647e-05 | O45: 5.013879684e-05 | P45: =+P44/300009 -> 6.936075532e-05 | Q45: 0.0001522958216 | R45: =+R44/300009 -> 0
A47: Underlying Assets | B47: =+B5 -> 2015-05-29 | C47: 2015-08-28 | D47: 2015-11-30 | E47: 2016-02-29 | F47: 2016-05-31 | G47: 2016-08-31 | H47: =+H5 -> 2016-11-30 | I47: 2017-02-28 | J47: =+J5 -> 2017-05-31 | K47: 2017-08-31 | L47: =+L5 -> 2017-11-30 | M47: 2018-02-28 | N47: =+N5 -> 2018-05-31 | O47: 2018-08-31 | P47: =+P5 -> 2018-11-30 | Q47: 2019-02-28 | R47: =+R5 -> 2019-05-31
A48: Weighted Average LTV | B48: 0.7214497113 | C48: 0.7219534756 | D48: 0.7222452536 | E48: 0.7221964144 | F48: 0.7215927399 | G48: 0.720464764 | H48: 0.7191432358 | I48: 0.7141917305 | J48: 0.7093176137 | K48: 0.7041683088 | L48: 0.7031886624 | M48: 0.7024173445 | N48: 0.7000341587 | O48: 0.7000519999 | P48: 0.6982023265 | Q48: 0.703371951 | R48: 0
A49: Weighted Average Nationwide Indexed LTV | B49: 0.7207161464 | C49: 0.6977451796 | D49: 0.6894112615 | E49: 0.6827291375 | F49: 0.6769587574 | G49: 0.6548649122 | H49: 0.6501885403 | I49: 0.6479405088 | J49: 0.6420929571 | K49: 0.6324365889 | L49: 0.6293979613 | M49: 0.6312518063 | N49: 0.6268278744 | O49: 0.6202192233 | P49: 0.6162889091 | Q49: 0.6248319479 | R49: 0
A50: Weighted Average Halifax Indexed LTV | B50: 0.7104999934 | C50: 0.6765328974 | D50: 0.6636996945 | E50: 0.661377024 | F50: 0.6319399402 | G50: 0.6138867931 | H50: n/a | I50: n/a | J50: n/a | K50: n/a | L50: n/a | M50: n/a | N50: n/a | O50: n/a | P50: n/a | Q50: n/a | R50: n/a
A51: % of Fixed Rate Mortgages (reverting to Libor plus a variable margin) | B51: 0.8324278679 | C51: 0.8404542717 | D51: 0.8490303744 | E51: 0.8545320768 | F51: 0.852790035 | G51: 0.8281785523 | H51: 0.7490988471 | I51: 0.4947342913 | J51: 0.2297405643 | K51: 0.2991741997 | L51: 0.3326434795 | M51: 0.3367079679 | N51: 0.3450594778 | O51: 0.3627955204 | P51: 0.380679926 | Q51: 0.4368358108 | R51: 0
A52: % of Libor Linked Mortgages (reverting to Libor plus a variable margin) | B52: 0.1273277075 | C52: 0.1191773787 | D52: 0.1121987761 | E52: 0.1062410415 | F52: 0.1023407873 | G52: 0.0995539502 | H52: 0.1024534495 | I52: 0.09362466006 | J52: 0.06978287644 | K52: 0.09148904498 | L52: 0.1092275959 | M52: 0.1137722811 | N52: 0.1227923117 | O52: 0.1318166162 | P52: 0.1470476735 | Q52: 0.1052417382 | R52: 0
A53: % of Libor Linked Mortgages plus a Variable Margin | B53: 0 | C53: 0 | D53: 0 | E53: 0 | F53: 0.005353653127 | G53: 0.03250309068 | H53: 0.1079421811 | I53: 0.363219118 | J53: 0.6170364808 | K53: 0.5078392562 | L53: 0.4620313579 | M53: 0.454260053 | N53: 0.4346879939 | O53: 0.4103268393 | P53: 0.4021048269 | Q53: 0.3889953602 | R53: 0
A54: % of Non Reversionary Libor Linked Mortgages | B54: 0.04024442453 | C54: 0.04036834952 | D54: 0.03877084949 | E54: 0.03922688166 | F54: 0.0395155246 | G54: 0.03976440677 | H54: 0.04050552227 | I54: 0.04842193064 | J54: 0.08344007847 | K54: 0.1014974992 | L54: 0.09609756672 | M54: 0.09525969797 | N54: 0.09746021663 | O54: 0.09506102404 | P54: 0.07016757357 | Q54: 0.06892709076 | R54: 0
A55: Weighted Average Loan Size | B55: 160045.8486 | C55: 159602.2292 | D55: 159294.7495 | E55: 159108.575 | F55: 159443.2344 | G55: 159908.6303 | H55: 160251.0527 | I55: 160965.0546 | J55: 160663.622 | K55: 157242.5729 | L55: 157359.2283 | M55: 156100.1281 | N55: 156995.656 | O55: 159829.1806 | P55: 160908.3598 | Q55: 157804.2834 | R55: 0
A56: Weighted Average Interest Rate | B56: 0.04043810182 | C56: 0.04044010478 | D56: 0.04042157957 | E56: 0.0404263568 | F56: 0.04046786835 | G56: 0.0406788658 | H56: 0.04115014869 | I56: 0.04405237129 | J56: 0.04818269288 | K56: 0.04723253156 | L56: 0.04680642546 | M56: 0.04804020025 | N56: 0.04921745764 | O56: 0.04831071747 | P56: 0.04947284625 | Q56: 0.0499840592 | R56: 0
A57: Weighted Average Maturity Date (years) | B57: 20.45240015 | C57: 20.21915966 | D57: 20.01463624 | E57: 19.74438525 | F57: 19.47116284 | G57: 19.23998838 | H57: 19.00334737 | I57: 18.74481726 | J57: 18.36018955 | K57: 18.05395901 | L57: 17.76143921 | M57: 17.68711049 | N57: 17.29125071 | O57: 17.03596711 | P57: 16.72681484 | Q57: 16.3983605 | R57: 0
A58: Weighted Average Seasoning (months) | B58: 4.070589384 | C58: 7.086694235 | D58: 10.07886997 | E58: 13.0684701 | F58: 16.0944368 | G58: 19.11403463 | H58: 22.05755672 | I58: 24.89953223 | J58: 28.05886468 | K58: 31.26209422 | L58: 34.2763354 | M58: 37.26731436 | N58: 40.32905179 | O58: 43.39812415 | P58: 46.34493142 | Q58: 49.26925383 | R58: 0
A59: % of Interest Only Mortgages (optional switching to repayment) | B59: 0.9150777086 | C59: 0.9154084938 | D59: 0.914555906 | E59: 0.9143150597 | F59: 0.9139950039 | G59: 0.9145177814 | H59: 0.9130811534 | I59: 0.9104267513 | J59: 0.9078910386 | K59: 0.8984228221 | L59: 0.8926032053 | M59: 0.8898021117 | N59: 0.887102606 | O59: 0.8926702779 | P59: 0.8978158139 | Q59: 0.8872290378 | R59: 0
A60: % of Repayment Mortgages | B60: 0.08492229137 | C60: 0.08459150618 | D60: 0.08544409399 | E60: 0.08568494033 | F60: 0.08600499613 | G60: 0.08548221863 | H60: 0.08691884659 | I60: 0.08957324869 | J60: 0.09210896139 | K60: 0.1015771779 | L60: 0.1073967947 | M60: 0.1101978883 | N60: 0.112897394 | O60: 0.1073297221 | P60: 0.1021841861 | Q60: 0.1127709622 | R60: 0
A61: % of Mortgages in London | B61: 0.2390625454 | C61: 0.2390785391 | D61: 0.2353238713 | E61: 0.237046339 | F61: 0.2378808189 | G61: 0.2398260907 | H61: 0.2412478618 | I61: 0.2434549619 | J61: 0.2206112107 | K61: 0.1978506526 | L61: 0.1949892952 | M61: 0.1668944818 | N61: 0.1703640185 | O61: 0.1806076567 | P61: 0.1883058111 | Q61: 0.181904411 | R61: 0
A62: % of Mortgages in the South East | B62: 0.3617295947 | C62: 0.3602405403 | D62: 0.3605025933 | E62: 0.3584294635 | F62: 0.3561319883 | G62: 0.3535377979 | H62: 0.3491301555 | I62: 0.3426682743 | J62: 0.3381618413 | K62: 0.3253537105 | L62: 0.3285917893 | M62: 0.3407562269 | N62: 0.3281373544 | O62: 0.3409264202 | P62: 0.3441534056 | Q62: 0.3360545018 | R62: 0
A63: % of Owner Occupied Mortgages | B63: 0 | C63: 0 | D63: 0 | E63: 0 | F63: 0 | G63: 0 | H63: 0 | I63: 0 | J63: 0 | K63: 0 | L63: 0 | M63: 0 | N63: 0 | O63: 0 | P63: 0 | Q63: 0 | R63: 0
A64: % of Investment Home Loans - Professional Landlords | B64: 0.4946050836 | C64: 0.4980237485 | D64: 0.5049655298 | E64: 0.5072126343 | F64: 0.5074490069 | G64: 0.5053840316 | H64: 0.509013786 | I64: 0.5391602988 | J64: 0.5871199881 | K64: 0.6204141271 | L64: 0.6511304393 | M64: 0.646654472 | N64: 0.6426514026 | O64: 0.6477079656 | P64: 0.651078762 | Q64: 0.6599059259 | R64: 0
A65: % of Investment Home Loans - Emerging Professional Landlords | B65: 0.5053949164 | C65: 0.5019762515 | D65: 0.4950344702 | E65: 0.4927873657 | F65: 0.4925509931 | G65: 0.4946159684 | H65: 0.490986214 | I65: 0.4608397012 | J65: 0.4128800119 | K65: 0.3795858729 | L65: 0.3488695607 | M65: 0.353345528 | N65: 0.3573485974 | O65: 0.3522920344 | P65: 0.348921238 | Q65: 0.3400940741 | R65: 0
A66: Weighted Average Interest Coverage Ratio (calculated at the origination date) | B66: 1.524574021 | C66: 1.528095802 | D66: 1.527702153 | E66: 1.529982782 | F66: 1.528962217 | G66: 1.531366314 | H66: 1.532554221 | I66: 1.535299343 | J66: 1.559918297 | K66: 1.590772337 | L66: 1.599362078 | M66: 1.612461401 | N66: 1.617028878 | O66: 1.598293224 | P66: 1.605405585 | Q66: 1.610286549 | R66: 0
A67: % of Paragon Originated Assets | B67: 0.2203768787 | C67: 0.2221424957 | D67: 0.2230168682 | E67: 0.2236656594 | F67: 0.2248908441 | G67: 0.2276540773 | H67: 0.2326988453 | I67: 0.2536086775 | J67: 0.319405844 | K67: 0.3729215878 | L67: 0.4089730224 | M67: 0.4120738007 | N67: 0.4275509116 | O67: 0.4265873528 | P67: 0.4320836854 | Q67: 0.4447023602 | R67: 0
A68: % of Mortgage Trust Originated Assets | B68: 0.7796231213 | C68: 0.7778575043 | D68: 0.7769831318 | E68: 0.7763343406 | F68: 0.7751091559 | G68: 0.7723459227 | H68: 0.7673011547 | I68: 0.7463913225 | J68: 0.680594156 | K68: 0.6270784122 | L68: 0.5910269776 | M68: 0.5879261993 | N68: 0.5724490884 | O68: 0.5734126472 | P68: 0.5679163146 | Q68: 0.5552976398 | R68: 0
A70: Underlying Assets - Paragon Mortgages 2010 Paragon Originated Assets | B70: =+B5 -> 2015-05-29 | C70: 2015-08-28 | D70: 2015-11-30 | E70: 2016-02-29 | F70: 2016-05-31 | G70: 2016-08-31 | H70: =+H5 -> 2016-11-30 | I70: 2017-02-28 | J70: =+J5 -> 2017-05-31 | K70: 2017-08-31 | L70: =+L5 -> 2017-11-30 | M70: 2018-02-28 | N70: =+N5 -> 2018-05-31 | O70: 2018-08-31 | P70: =+P5 -> 2018-11-30 | Q70: 2019-02-28 | R70: =+R5 -> 2019-05-31
A71: Weighted Average LTV | B71: 0.7038714751 | C71: 0.7039370546 | D71: 0.7052039702 | E71: 0.7044825794 | F71: 0.7037537092 | G71: 0.7025328351 | H71: 0.6997451839 | I71: 0.6938101234 | J71: 0.6896455651 | K71: 0.685521396 | L71: 0.6813065902 | M71: 0.6839291715 | N71: 0.6817800821 | O71: 0.6818859284 | P71: 0.6774717667 | Q71: 0.6848788319 | R71: 0
A72: Weighted Average Nationwide Indexed LTV | B72: 0.7041536251 | C72: 0.6828124442 | D72: 0.677456513 | E72: 0.673732508 | F72: 0.6689966001 | G72: 0.6481556803 | H72: 0.6426535219 | I72: 0.6413950704 | J72: 0.635284588 | K72: 0.6233542164 | L72: 0.6165991356 | M72: 0.6223279973 | N72: 0.6170625005 | O72: 0.6101225906 | P72: 0.6050389826 | Q72: 0.6157076172 | R72: 0
A73: Weighted Average Halifax Indexed LTV | B73: 0.6930867216 | C73: 0.6629396182 | D73: 0.6553885056 | E73: 0.6538810319 | F73: 0.6301939423 | G73: 0.6120401919 | H73: n/a | I73: n/a | J73: n/a | K73: n/a | L73: n/a | M73: n/a | N73: n/a | O73: n/a | P73: n/a | Q73: n/a | R73: n/a
A74: % of Fixed Rate Mortgages (reverting to Libor plus a variable margin) | B74: 0.7421404886 | C74: 0.7418711536 | D74: 0.7490026153 | E74: 0.7466307727 | F74: 0.7404862597 | G74: 0.7184535695 | H74: 0.6165822606 | I74: 0.3478074019 | J74: 0.2582687295 | K74: 0.2897874341 | L74: 0.3138940171 | M74: 0.3475602443 | N74: 0.359332044 | O74: 0.3874669396 | P74: 0.4226587396 | Q74: 0.4710836101 | R74: 0
A75: % of Libor Linked Mortgages (reverting to Libor plus a variable margin) | B75: 0.07524314627 | C75: 0.07640607698 | D75: 0.07715022326 | E75: 0.07798744638 | F75: 0.07892486905 | G75: 0.07922967254 | H75: 0.08027352322 | I75: 0.09335075074 | J75: 0.08135632445 | K75: 0.09137513721 | L75: 0.1002173276 | M75: 0.08372877101 | N75: 0.08480723385 | O75: 0.09063510917 | P75: 0.1010220307 | Q75: 0.06342181956 | R75: 0
A76: % of Libor Linked Mortgages plus a Variable Margin | B76: 0 | C76: 0 | D76: 0 | E76: 0 | F76: 0.004879074052 | G76: 0.02764645446 | H76: 0.1290757879 | I76: 0.3788275905 | J76: 0.4537038459 | K76: 0.3868404434 | L76: 0.3670243088 | M76: 0.35611839 | N76: 0.3484325865 | O76: 0.3212117819 | P76: 0.3275842888 | Q76: 0.3169002507 | R76: 0
A77: % of Non Reversionary Libor Linked Mortgages | B77: 0.1826163651 | C77: 0.1817227694 | D77: 0.1738471614 | E77: 0.1753817809 | F77: 0.1757097972 | G77: 0.1746703035 | H77: 0.1740684283 | I77: 0.1800142568 | J77: 0.2066711001 | K77: 0.2319969852 | L77: 0.2188643466 | M77: 0.2125925947 | N77: 0.2074281357 | O77: 0.2006861693 | P77: 0.1487349409 | Q77: 0.1485943197 | R77: 0
A78: Weighted Average Loan Size | B78: 188992.2833 | C78: 189227.7538 | D78: 190097.6545 | E78: 190009.8246 | F78: 190485.3015 | G78: 191285.6934 | H78: 191499.6987 | I78: 193013.3938 | J78: 194217.6098 | K78: 192603.3868 | L78: 193351.7973 | M78: 188493.9867 | N78: 189503.7454 | O78: 192559.9751 | P78: 191312.8162 | Q78: 187823.8321 | R78: 0
A79: Weighted Average Interest Rate | B79: 0.04856358038 | C79: 0.04854968505 | D79: 0.04856933935 | E79: 0.0486077656 | F79: 0.04863464567 | G79: 0.0486482765 | H79: 0.04842234686 | I79: 0.04842094593 | J79: 0.04864090094 | K79: 0.048290028 | L79: 0.04823051736 | M79: 0.0495817945 | N79: 0.05090675658 | O79: 0.05008853571 | P79: 0.0512568687 | Q79: 0.05187080736 | R79: 0
A80: Weighted Average Maturity Date (years) | B80: 20.14490433 | C80: 19.87727977 | D80: 19.73746267 | E80: 19.45127573 | F80: 19.17273755 | G80: 18.93620522 | H80: 18.73618835 | I80: 18.50411638 | J80: 18.32685174 | K80: 17.97680646 | L80: 17.71987335 | M80: 17.64363055 | N80: 17.31264662 | O80: 16.98955533 | P80: 16.75510922 | Q80: 16.30399581 | R80: 0
A81: Weighted Average Seasoning (months) | B81: 4.224132531 | C81: 7.2418743 | D81: 10.24349294 | E81: 13.23881916 | F81: 16.26743627 | G81: 19.28548374 | H81: 22.25532031 | I81: 25.20103767 | J81: 28.28982953 | K81: 31.3737036 | L81: 34.34277937 | M81: 37.33119777 | N81: 40.39369749 | O81: 43.44717691 | P81: 46.39303793 | Q81: 49.41712088 | R81: 0
A82: % of Interest Only Mortgages (optional switching to repayment) | B82: 0.9011227483 | C82: 0.9028747115 | D82: 0.9027382003 | E82: 0.9047740962 | F82: 0.9050222546 | G82: 0.907233613 | H82: 0.8976342614 | I82: 0.9016558386 | J82: 0.8940632819 | K82: 0.8836226327 | L82: 0.8800245726 | M82: 0.8719537473 | N82: 0.8682738221 | O82: 0.8772010942 | P82: 0.8707611561 | Q82: 0.8575068911 | R82: 0
A83: % of Repayment Mortgages | B83: 0.09887725172 | C83: 0.0971252885 | D83: 0.0972617997 | E83: 0.09522590385 | F83: 0.09497774543 | G83: 0.09276638703 | H83: 0.1023657386 | I83: 0.09834416144 | J83: 0.1059367181 | K83: 0.1163773673 | L83: 0.1199754274 | M83: 0.1280462527 | N83: 0.1317261779 | O83: 0.1227989058 | P83: 0.1292388439 | Q83: 0.1424931089 | R83: 0
A84: % of Mortgages in London | B84: 0.1571464577 | C84: 0.157879922 | D84: 0.1565216077 | E84: 0.1556541246 | F84: 0.1571238229 | G84: 0.1579240552 | H84: 0.1602189318 | I84: 0.1621799958 | J84: 0.1551532 | K84: 0.1598052761 | L84: 0.1730570426 | M84: 0.1141961795 | N84: 0.1049231995 | O84: 0.1066719992 | P84: 0.1185189307 | Q84: 0.1242418276 | R84: 0
A85: % of Mortgages in the South East | B85: 0.3101811691 | C85: 0.3099347418 | D85: 0.3060635328 | E85: 0.3020990346 | F85: 0.3003012017 | G85: 0.3009256232 | H85: 0.2944628293 | I85: 0.2956171227 | J85: 0.2911904486 | K85: 0.2869368342 | L85: 0.2752414051 | M85: 0.3044666704 | N85: 0.298604626 | O85: 0.3124572281 | P85: 0.3113279011 | Q85: 0.291447026 | R85: 0
A86: % of Owner Occupied Mortgages | B86: 0 | C86: 0 | D86: 0 | E86: 0 | F86: 0 | G86: 0 | H86: 0 | I86: 0 | J86: 0 | K86: 0 | L86: 0 | M86: 0 | N86: 0 | O86: 0 | P86: 0 | Q86: 0 | R86: 0
A87: % of Investment Home Loans - Professional Landlords | B87: 0.7696981612 | C87: 0.7637773576 | D87: 0.780777545 | E87: 0.7904343577 | F87: 0.7865793553 | G87: 0.7875278203 | H87: 0.7964091331 | I87: 0.8113176358 | J87: 0.8133513011 | K87: 0.8265550747 | L87: 0.8331158794 | M87: 0.8184664293 | N87: 0.81449302 | O87: 0.8100948455 | P87: 0.7943302701 | Q87: 0.8353189876 | R87: 0
A88: % of Investment Home Loans - Emerging Professional Landlords | B88: 0.2303018388 | C88: 0.2362226424 | D88: 0.219222455 | E88: 0.2095656423 | F88: 0.2134206447 | G88: 0.2124721797 | H88: 0.2035908669 | I88: 0.1886823642 | J88: 0.1866486989 | K88: 0.1734449253 | L88: 0.1668841206 | M88: 0.1815335707 | N88: 0.18550698 | O88: 0.1899051545 | P88: 0.2056697299 | Q88: 0.1646810124 | R88: 0
A89: Weighted Average Interest Coverage Ratio (calculated at the origination date) | B89: 1.684776593 | C89: 1.69040461 | D89: 1.683297066 | E89: 1.685448615 | F89: 1.685802663 | G89: 1.688037728 | H89: 1.686344441 | I89: 1.689749219 | J89: 1.701571013 | K89: 1.725577241 | L89: 1.727911063 | M89: 1.758485189 | N89: 1.749959384 | O89: 1.731820459 | P89: 1.748736357 | Q89: 1.730829021 | R89: 0
A90: Number of Properties in Possession | B90: 0 | C90: 0 | D90: 0 | E90: 0 | F90: 0 | G90: 0 | H90: 0 | I90: 0 | J90: 0 | K90: 0 | L90: 0 | M90: 0 | N90: 0 | O90: 0 | P90: 0 | Q90: 0 | R90: 0
A91: Appointment of a Receiver of Rent | B91: 0 | C91: 0 | D91: 0 | E91: 0 | F91: 0 | G91: 0 | H91: 0 | I91: 0 | J91: 0 | K91: 0 | L91: 0 | M91: 0 | N91: 0 | O91: 0 | P91: 0 | Q91: 0 | R91: 0
A92: PML Quarterly Losses | B92: 0 | C92: 0 | D92: 0 | E92: 0 | F92: 0 | G92: 0 | H92: 0 | I92: 0 | J92: 0 | K92: 0 | L92: 0 | M92: 0 | N92: 0 | O92: 0 | P92: 0 | Q92: 0 | R92: 0
A93: Arrears excluding Receiver of Rent and Possession Cases
A94: Performing Loans | B94: 1 | C94: 1 | D94: 1 | E94: 1 | F94: 1 | G94: 1 | H94: 1 | I94: 1 | J94: 1 | K94: 1 | L94: 1 | M94: 1 | N94: 1 | O94: 1 | P94: 1 | Q94: 0.9480828037 | R94: 0
A95: >1 to 2 months arrears | B95: 0 | C95: 0 | D95: 0 | E95: 0 | F95: 0 | G95: 0 | H95: 0 | I95: 0 | J95: 0 | K95: 0 | L95: 0 | M95: 0 | N95: 0 | O95: 0 | P95: 0 | Q95: 0 | R95: 0
A96: >2 to 3 months arrears | B96: 0 | C96: 0 | D96: 0 | E96: 0 | F96: 0 | G96: 0 | H96: 0 | I96: 0 | J96: 0 | K96: 0 | L96: 0 | M96: 0 | N96: 0 | O96: 0 | P96: 0 | Q96: 0.05191719631 | R96: 0
A97: >3 months arrears | B97: 0 | C97: 0 | D97: 0 | E97: 0 | F97: 0 | G97: 0 | H97: 0 | I97: 0 | J97: 0 | K97: 0 | L97: 0 | M97: 0 | N97: 0 | O97: 0 | P97: 0 | Q97: 0 | R97: 0
A98: Total | B98: =SUM(B94:B97) -> 1 | C98: =SUM(C94:C97) -> 1 | D98: 1 | E98: 1 | F98: 1 | G98: 1 | H98: 1 | I98: 1 | J98: 1 | K98: 1 | L98: 1 | M98: 1 | N98: 1 | O98: 1 | P98: 1 | Q98: 1 | R98: =SUM(R94:R97) -> 0
A100: Underlying Assets - Paragon Mortgages 2010 Mortgage Trust Originated Assets | B100: =+B70 -> 2015-05-29 | C100: 2015-08-28 | D100: 2015-11-30 | E100: 2016-02-29 | F100: 2016-05-31 | G100: 2016-08-31 | H100: =+H70 -> 2016-11-30 | I100: 2017-02-28 | J100: =+J70 -> 2017-05-31 | K100: 2017-08-31 | L100: =+L70 -> 2017-11-30 | M100: 2018-02-28 | N100: =+N70 -> 2018-05-31 | O100: 2018-08-31 | P100: =+P70 -> 2018-11-30 | Q100: 2019-02-28 | R100: =+R70 -> 2019-05-31
A101: Weighted Average LTV | B101: 0.7264185696 | C101: 0.7270986502 | D101: 0.7271366 | E101: 0.7272998554 | F101: 0.7267685718 | G101: 0.7257503188 | H101: 0.7250260684 | I101: 0.7211169884 | J101: 0.718549793 | K101: 0.71525757 | L101: 0.718330403 | M101: 0.7153755894 | N101: 0.7136677679 | O101: 0.7135665542 | P101: 0.7139746092 | Q101: 0.7181819071 | R101: 0
A102: Weighted Average Nationwide Indexed LTV | B102: 0.7253978915 | C102: 0.7020097076 | D102: 0.6928426238 | E102: 0.6853211097 | F102: 0.6792689046 | G102: 0.6568425028 | H102: 0.6524736797 | I102: 0.6501645164 | J102: 0.6452881547 | K102: 0.6378378477 | L102: 0.6382543666 | M102: 0.6375064482 | N102: 0.6341214391 | O102: 0.6277305606 | P102: 0.6248481098 | Q102: 0.6321390408 | R102: 0
A103: Weighted Average Halifax Indexed LTV | B103: 0.715422221 | C103: 0.6804149001 | D103: 0.6660852487 | E103: 0.6635366554 | F103: 0.6324465256 | G103: 0.614431091 | H103: n/a | I103: n/a | J103: n/a | K103: n/a | L103: n/a | M103: n/a | N103: n/a | O103: n/a | P103: n/a | Q103: n/a | R103: n/a
A104: % of Fixed Rate Mortgages (reverting to Libor plus a variable margin) | B104: 0.8579494954 | C104: 0.8686078857 | D104: 0.8777412649 | E104: 0.8856189617 | F104: 0.8853739499 | G104: 0.8605207179 | H104: 0.7892870528 | I104: 0.5446570771 | J104: 0.2163521703 | K104: 0.3047564801 | L104: 0.3456175478 | M104: 0.3291016752 | N104: 0.3343995801 | O104: 0.3444413465 | P104: 0.3487414872 | Q104: 0.409408939 | R104: 0
A105: % of Libor Linked Mortgages (reverting to Libor plus a variable margin) | B105: 0.1420505046 | C105: 0.1313921143 | D105: 0.1222587351 | E105: 0.1143810383 | F105: 0.1091347022 | G105: 0.1055446657 | H105: 0.1091799391 | I105: 0.09371772891 | J105: 0.06435140616 | K105: 0.09155678559 | L105: 0.1154624325 | M105: 0.1348295897 | N105: 0.1511626157 | O105: 0.1624533839 | P105: 0.1820650323 | Q105: 0.1387326361 | R105: 0
A106: % of Libor Linked Mortgages plus a Variable Margin | B106: 0 | C106: 0 | D106: 0 | E106: 0 | F106: 0.005491347912 | G106: 0.03393461638 | H106: 0.1015330081 | I106: 0.3579156746 | J106: 0.6936892079 | K106: 0.579796875 | L106: 0.5277733993 | M106: 0.5230469315 | N106: 0.4991104532 | O106: 0.4766235222 | P106: 0.458801752 | Q106: 0.4467317219 | R106: 0
A107: % of Non Reversionary Libor Linked Mortgages | B107: 0 | C107: 0 | D107: 0 | E107: 0 | F107: 0 | G107: 0 | H107: 0 | I107: 0.003709519336 | J107: 0.02560721561 | K107: 0.02388985936 | L107: 0.0111466204 | M107: 0.01302180357 | N107: 0.01532735102 | O107: 0.01648174727 | P107: 0.01039172852 | Q107: 0.005126703006 | R107: 0
A108: Weighted Average Loan Size | B108: 153404.2926 | C108: 152771.6793 | D108: 152215.3021 | E108: 151987.2994 | F108: 152244.7607 | G108: 152533.6796 | H108: 152694.6465 | I108: 152368.7552 | J108: 148614.0903 | K108: 141764.3518 | L108: 139402.6707 | M108: 139318.7735 | N108: 139165.4615 | O108: 141887.0507 | P108: 143551.0264 | Q108: 139897.8859 | R108: 0
A109: Weighted Average Interest Rate | B109: 0.03814126434 | C109: 0.03812415052 | D109: 0.03808293438 | E109: 0.03806925355 | F109: 0.03809835248 | G109: 0.0383298292 | H109: 0.03894471461 | I109: 0.04256801797 | J109: 0.04796765381 | K109: 0.04660364171 | L109: 0.04582099638 | M109: 0.04695970647 | N109: 0.04795575364 | O109: 0.04698811885 | P109: 0.04811552128 | Q109: 0.04847308328 | R109: 0
A110: Weighted Average Maturity Date (years) | B110: 20.53932031 | C110: 20.31679457 | D110: 20.09419316 | E110: 19.82883151 | F110: 19.55774821 | G110: 19.32953048 | H110: 19.08436849 | I110: 18.82660255 | J110: 18.37583513 | K110: 18.0998414 | L110: 17.79020155 | M110: 17.71758532 | N110: 17.27527053 | O110: 17.07049492 | P110: 16.70528784 | Q110: 16.47393113 | R110: 0
A111: Weighted Average Seasoning (months) | B111: 4.027187183 | C111: 7.042377523 | D111: 10.03161836 | E111: 13.01939172 | F111: 16.04424259 | G111: 19.06349887 | H111: 21.99758111 | I111: 24.79708678 | J111: 27.95047185 | K111: 31.19572047 | L111: 34.23035815 | M111: 37.22253888 | N111: 40.2807692 | O111: 43.36163161 | P111: 46.30833089 | Q111: 49.15083658 | R111: 0
A112: % of Interest Only Mortgages (optional switching to repayment) | B112: 0.9190223718 | C112: 0.9189879228 | D112: 0.917947933 | E112: 0.9170638572 | F112: 0.9165983652 | G112: 0.9166648383 | H112: 0.9177657207 | I112: 0.9134069301 | J112: 0.9143804659 | K112: 0.9072244489 | L112: 0.9013072436 | M112: 0.9023119188 | N112: 0.9011654527 | O112: 0.9041784965 | P112: 0.9183996146 | Q112: 0.9110316039 | R112: 0
A113: % of Repayment Mortgages | B113: 0.08097762821 | C113: 0.08101207721 | D113: 0.08205206705 | E113: 0.08293614282 | F113: 0.08340163485 | G113: 0.08333516174 | H113: 0.08223427925 | I113: 0.0865930699 | J113: 0.0856195341 | K113: 0.09277555114 | L113: 0.09869275638 | M113: 0.09768808124 | N113: 0.09883454732 | O113: 0.09582150352 | P113: 0.08160038541 | Q113: 0.08896839609 | R113: 0
A114: % of Mortgages in London | B114: 0.2622178511 | C114: 0.2622674437 | D114: 0.2579424242 | E114: 0.2604958276 | F114: 0.261311724 | G114: 0.2639672582 | H114: 0.2658214446 | I114: 0.2710705518 | J114: 0.2513309443 | K114: 0.2204761201 | L114: 0.2101657592 | M114: 0.2038303927 | N114: 0.2192404729 | O114: 0.235611704 | P114: 0.2414012614 | Q114: 0.2280826856 | R114: 0
A115: % of Mortgages in the South East | B115: 0.3763008418 | C115: 0.3746069963 | D115: 0.3761281947 | E115: 0.3746585311 | F115: 0.3723307812 | G115: 0.369045585 | H115: 0.3657090745 | I115: 0.3586553041 | J115: 0.3602057235 | K115: 0.3482001078 | L115: 0.3655086623 | M115: 0.3661913504 | N115: 0.3501947656 | O115: 0.3621059274 | P115: 0.3691277981 | Q115: 0.3717777758 | R115: 0
A116: % of Owner Occupied Mortgages | B116: 0 | C116: 0 | D116: 0 | E116: 0 | F116: 0 | G116: 0 | H116: 0 | I116: 0 | J116: 0 | K116: 0 | L116: 0 | M116: 0 | N116: 0 | O116: 0 | P116: 0 | Q116: 0 | R116: 0
A117: % of Investment Home Loans - Professional Landlords | B117: 0.4168442373 | C117: 0.4221291667 | D117: 0.4257994201 | E117: 0.4256150928 | F117: 0.4264618851 | G117: 0.4222202807 | H117: 0.4218556147 | I117: 0.4466867394 | J117: 0.4809486335 | K117: 0.4978227447 | L117: 0.5252019482 | M117: 0.5262325443 | N117: 0.5143062945 | O117: 0.5269010919 | P117: 0.5420897472 | Q117: 0.5194288251 | R117: 0
A118: % of Investment Home Loans - Emerging Professional Landlords | B118: 0.5831557627 | C118: 0.5778708333 | D118: 0.5742005799 | E118: 0.5743849072 | F118: 0.5735381149 | G118: 0.5777797193 | H118: 0.5781443853 | I118: 0.5533132606 | J118: 0.5190513665 | K118: 0.5021772553 | L118: 0.4747980518 | M118: 0.4737674557 | N118: 0.4856937055 | O118: 0.4730989081 | P118: 0.4579102528 | Q118: 0.4805711749 | R118: 0
A119: Weighted Average Interest Coverage Ratio (calculated at the origination date) | B119: 1.440956469 | C119: 1.444228031 | D119: 1.445809721 | E119: 1.446799843 | F119: 1.445029884 | G119: 1.445231215 | H119: 1.444504194 | I119: 1.439981777 | J119: 1.4474943 | K119: 1.457666095 | L119: 1.458259455 | M119: 1.453277566 | N119: 1.4597968 | O119: 1.445565692 | P119: 1.445614376 | Q119: 1.45504427 | R119: 0
A120: Number of Properties in Possession | B120: 0 | C120: 0 | D120: 0 | E120: 0 | F120: 0 | G120: 0 | H120: 0 | I120: 0 | J120: 0 | K120: 0 | L120: 0 | M120: 0 | N120: 0 | O120: 0 | P120: 0 | Q120: 0 | R120: 0
A121: Appointment of a Receiver of Rent | B121: 0 | C121: 0 | D121: 0 | E121: 0 | F121: 0 | G121: 0 | H121: 0 | I121: 0 | J121: 0 | K121: 0 | L121: 0 | M121: 1 | N121: 0 | O121: 0 | P121: 0 | Q121: 0 | R121: 0
A122: MTL Quarterly Losses | B122: 0 | C122: 0 | D122: 0 | E122: 0 | F122: 0 | G122: 0 | H122: 0 | I122: 0 | J122: 0 | K122: 0 | L122: 0 | M122: 0 | N122: 0 | O122: 0 | P122: 0 | Q122: 0 | R122: 0
A123: Arrears excluding Receiver of Rent and Possession Cases
A124: Performing Loans | B124: 1 | C124: 0.9990059901 | D124: 1 | E124: 1 | F124: 1 | G124: 1 | H124: 1 | I124: 1 | J124: 1 | K124: 1 | L124: 1 | M124: 1 | N124: 0.991626057 | O124: 0.9881838304 | P124: 0.9897357176 | Q124: 0.9879432737 | R124: 0
A125: >1 to 2 months arrears | B125: 0 | C125: 0.0009940099438 | D125: 0 | E125: 0 | F125: 0 | G125: 0 | H125: 0 | I125: 0 | J125: 0 | K125: 0 | L125: 0 | M125: 0 | N125: 0 | O125: 0.002811533989 | P125: 0 | Q125: 0 | R125: 0
A126: >2 to 3 months arrears | B126: 0 | C126: 0 | D126: 0 | E126: 0 | F126: 0 | G126: 0 | H126: 0 | I126: 0 | J126: 0 | K126: 0 | L126: 0 | M126: 0 | N126: 0 | O126: 0 | P126: 0 | Q126: 0 | R126: 0
A127: >3 months arrears | B127: 0 | C127: 0 | D127: 0 | E127: 0 | F127: 0 | G127: 0 | H127: 0 | I127: 0 | J127: 0 | K127: 0 | L127: 0 | M127: 0 | N127: 0.008373942956 | O127: 0.009004635655 | P127: 0.01026428241 | Q127: 0.01205672634 | R127: 0
A128: Total | B128: =SUM(B124:B127) -> 1 | C128: =SUM(C124:C127) -> 1 | D128: 1 | E128: 1 | F128: 1 | G128: 1 | H128: 1 | I128: 1 | J128: 1 | K128: 1 | L128: 1 | M128: 1 | N128: 1 | O128: 1 | P128: 1 | Q128: 1 | R128: =SUM(R124:R127) -> 0

Sheet Graphs
K2: PARAGON MORTGAGES (NO.22) PLC
